Cogmind - Beta 17 @@@ ROGUE MODE // 2026.07.10 @ 18:49:06 // AFD2019/Pay2Buy Player: EN-G1N Result: Self-destructed Performance ------------- Evolutions (1) 500 Regions Visited (2) 400 Robots Destroyed (20) 100 Value Destroyed (483) 483 Prototype IDs (2) 40 Alien Tech Used (0) 0 Bonus (0) 0 TOTAL SCORE: 1523 Bonus ------- None Cogmind --------- Core Integrity 385/400 Matter 271/300 Energy 100/100 System Corruption 0% Temperature Cool (37) Movement Treading (160) Location -9/Materials Parts ------- > --- POWER (1) -------- (None) > --- PROPULSION (2) --- Improved Treads > --- UTILITY (3) ------ Field Recycling Unit > --- WEAPON (3) ------- Precision Beam Rifle > --- INVENTORY (10) --- Compact Wheel Weight Redist. System Field Recycling Unit (0) Peak State ------------ > --- POWER ------------ Improved Ion Engine > --- PROPULSION ------- Improved Treads Improved Treads > --- UTILITY ---------- Weight Redist. System Medium Armor Plating > --- WEAPON ----------- Improved EM Shotgun Improved EM Shotgun > --- INVENTORY -------- (None) [Rating: 16] Favorites ----------- Power Improved Ion Engine Engine Improved Ion Engine Propulsion Improved Treads Treads Improved Treads Wheel Compact Wheel Utility Weight Redist. System Device Weight Redist. System Protection Medium Armor Plating Weapon Improved EM Shotgun Energy Gun Improved EM Shotgun Special Weapon Mining Laser Build | -11 -10 -9 ------- Run | Yrd Mat Mat Slots Evolved 2 | . . 2 Power . | . . . Propulsion . | . . . Utility 1 | . . 1 Weapon 1 | . . 1 Parts Attached 7 | . 7 . Power 1 | . 1 . Engine 1 | . 1 . Core . | . . . Reactor . | . . . Propulsion 3 | . 3 . Treads 2 | . 2 . Leg . | . . . Wheel 1 | . 1 . Hover . | . . . Flight . | . . . Utility 2 | . 2 . Device 2 | . 2 . Storage . | . . . Processor . | . . . Hackware . | . . . Protection . | . . . Artifact . | . . . Weapon 1 | . 1 . Energy Gun 1 | . 1 . Energy Cannon . | . . . Ballistic Gun . | . . . Ballistic Cannon . | . . . Launcher . | . . . Special Weapon . | . . . Impact Weapon . | . . . Slashing Weapon . | . . . Piercing Weapon . | . . . Special Melee Weapon . | . . . Unidentified Prototypes . | . . . Parts Lost 7 | . 4 3 Power 2 | . 1 1 Propulsion 1 | . . 1 Utility 1 | . 1 . Weapon 3 | . 2 1 Highest Loss Streak 3 | . 2 3 To Critical Strikes . | . . . Average Backups 2 | . 2 3 Power . | . . . Propulsion . | . . 1 Utility 1 | . 1 2 Weapon . | . . . Tool/Special . | . . . Unused Backups 1 | . . 1 Power . | . . . Propulsion . | . . . Utility 1 | . . 1 Weapon . | . . . Tool/Special . | . . . Average Slot Usage (%) 85 | . 86 66 Engine 13 | . 13 11 Treads 27 | . 27 22 Device 15 | . 15 11 Protection 5 | . 5 . Energy Gun 22 | . 22 11 Peak Build Rating 16 | 16 16 13 Average Rating 14 | 16 14 12 On Entrance 9 | . 16 12 Avg Prop Armor Cover (%) . | . . . Naked Turns 8 | . 8 . Heaviest Build 20 | 20 20 18 Greatest Support 52 | 52 52 46 Greatest Overweight (x) 1 | . 1 . Average Overweight (x) . | . . . Largest Inventory Capacity 10 | 10 10 10 Average Capacity 10 | 10 10 10 Most Carried 8 | . 8 3 Average Carried 2 | . 2 3 Final Capacity 10 | 10 10 10 Final Carried 3 | . 3 3 Class Distribution -------------------- 100% | Mutant Dominant Class ---------------- Mutant | -10/Materials Mutant | -9/Materials Resources | -11 -10 -9 ----------- Run | Yrd Mat Mat Matter Collected 266 | . 210 56 Remotely . | . . . Salvage Created 726 | . 670 56 Parts . | . . . Haulers Intercepted 1 | . 1 . Recyclers Shooed . | . . . Parts Field Recycled . | . . . Retrieved Matter . | . . . Parts Self-Destructed . | . . . Prevented . | . . . Parts Restored . | . . . Kills | -11 -10 -9 ------- Run | Yrd Mat Mat Combat Hostiles Destroyed 13 | . 12 1 Guns 12 | . 11 1 AOE 1 | . 1 . Classes Destroyed 7 | . 6 1 Builder 2 | . 2 . Hauler 1 | . 1 . Operator 1 | . 1 . Watcher 3 | . 3 . Swarmer 3 | . 3 . Grunt 9 | . 9 . Sentry 1 | . . 1 Best Kill Streak 6 | . 6 1 Combat Bots Only 6 | . 6 1 Max Kills in Single Turn 2 | . 2 1 Gunslinging 1 | . 1 . Exploded 1 | . 1 . Melee . | . . . Uniques/NPCs Destroyed . | . . . Combat | -11 -10 -9 -------- Run | Yrd Mat Mat Hostile Shots Fired 76 | . 56 20 Missed 17 | . 13 4 Hits 59 | . 43 16 Projectile 59 | . 43 16 Critical Strikes 1 | . 1 . Damage Taken 767 | . 559 208 Core 74 | . 59 15 Absorbed by Shields . | . . . Core Remaining (%) 88 | 100 76 . Volleys Fired 55 | . 49 6 Largest 2 | . 2 1 Hottest 106 | . 106 61 Shots Fired 91 | . 85 6 Gun 91 | . 85 6 Cannon . | . . . Launcher . | . . . Special . | . . . Kinetic . | . . . Thermal 25 | . 19 6 Explosive . | . . . Electromagnetic 66 | . 66 . Robot Hit Streak 11 | . 11 6 Robot Miss Streak 7 | . 7 . Penetration Max . | . . . Secondary Targets 2 | . 2 . Max Gunslinging Chain 1 | . 1 . Shots Hit Robots 62 | . 56 6 Core Hits 30 | . 28 2 Critical Kills . | . . . Critical Parts Destroyed . | . . . Critical Strikes 1 | . . 1 Burn 1 | . . 1 Melee Attacks . | . . . Impact . | . . . Slashing . | . . . Piercing . | . . . Sneak Attacks . | . . . Combat Hostiles . | . . . Follow-up Attacks . | . . . Damage Inflicted 1207 | . 1104 103 Guns 1027 | . 924 103 Cannons . | . . . Explosions 180 | . 180 . Melee . | . . . Ramming . | . . . Kinetic . | . . . Thermal 511 | . 408 103 Explosive . | . . . Electromagnetic 696 | . 696 . Impact . | . . . Slashing . | . . . Piercing . | . . . Highest Corruption . | . . . Average Corruption . | . . . Corruption Purged . | . . . Corruption Blocked . | . . . Overload Shots . | . . . Overflow Damage 2 | . 2 . Projectiles . | . . . Explosions 2 | . 2 . Melee . | . . . Knockbacks . | . . . Impact . | . . . Kinetic . | . . . Secondary . | . . . Self-Inflicted Damage 38 | . 38 . Shots 1 | . 1 . Rammed . | . . . Targets Rammed . | . . . Kicked . | . . . Crushed . | . . . Highest Temperature 459 | . 459 174 Average Temperature 125 | . 128 97 Received Heat Transfer 345 | . 249 96 Effects 7 | . 7 . Shutdowns 1 | . 1 . Energy Bleed 2 | . 2 . Interference 3 | . 3 . Damage (minor) 1 | . 1 . Siege Activations . | . . . Martial Activations . | . . . Shielding Activations . | . . . Robots Disrupted . | . . . Combat Hostiles . | . . . Robots Corrupted . | . . . Combat Hostiles . | . . . Parts Fried . | . . . Impact Corruptions . | . . . Robots Melted . | . . . Combat Hostiles . | . . . Parts Melted . | . . . Heat Transferred 927 | . 631 296 Parts Sabotaged . | . . . Parts Stolen . | . . . Parts Stripped . | . . . Power Chain Reactions 5 | . 5 . Alert | -11 -10 -9 ------- Run | Yrd Mat Mat Maximum Alert Level . | . . . Low Security (%) 100 | 100 100 100 Level 1 . | . . . Level 2 . | . . . Level 3 . | . . . Level 4 . | . . . Level 5 . | . . . High Security . | . . . Max Security . | . . . Peak Influence 158 | . 158 30 Initial . | . . . Average 48 | . 51 3 Influence Increases 448 | . 418 30 Destroy 0b10 Robot/C 260 | . 240 20 Destroy 0b10 Robot/NC 35 | . 35 . Destroy Leader 88 | . 78 10 Successful Hack 16 | . 16 . Destroy Structure 19 | . 19 . Lose Combat Pursuer 30 | . 30 . Influence Decreases 418 | . 418 . Time Decay 378 | . 378 . Lost Part 40 | . 40 . Squads Dispatched 4 | . 4 . Investigation 1 | . 1 . Extermination . | . . . Reinforcement 3 | . 3 . Assault . | . . . Garrison . | . . . Intercept . | . . . Searches Triggered . | . . . Construction Impeded . | . . . Haulers Reinforced . | . . . Active Scanning Responses . | . . . Cargo Convoy Interrupts . | . . . Stealth | -11 -10 -9 --------- Run | Yrd Mat Mat Distress Signals . | . . . Communications Jammed . | . . . Distress Signals . | . . . Times Spotted 25 | . 21 4 Peak Tracking Total 5 | . 5 4 Tactical Retreats 2 | . 2 . Traps | -11 -10 -9 ------- Run | Yrd Mat Mat Traps Triggered 5 | . 5 . Indirectly . | . . . Trap Hack Attempts . | . . . Triggered . | . . . Disarmed . | . . . Reprogrammed . | . . . Reused . | . . . Traps Extracted . | . . . Installed . | . . . Triggered . | . . . Machines | -11 -10 -9 ---------- Run | Yrd Mat Mat Machines Disabled . | . . . Max in Single Turn . | . . . Machines Repaired . | . . . Machines Dismantled . | . . . Machines Sabotaged . | . . . Overloaded Fab Kills . | . . . Hacking | -11 -10 -9 --------- Run | Yrd Mat Mat Machines Accessed 3 | . 3 . Terminals 3 | . 3 . Fabricators . | . . . Repair Stations . | . . . Recycling Units . | . . . Scanalyzers . | . . . Garrison Access . | . . . Total Hacks 8 | . 8 . Successful 6 | . 6 . Failed 2 | . 2 . Catastrophic . | . . . Database Lockouts . | . . . Manual 6 | . 6 . Terminals 8 | . 8 . Fabricators . | . . . Repair Stations . | . . . Recycling Units . | . . . Scanalyzers . | . . . Garrison Access . | . . . Terminal Hacks 5 | . 5 . Record 1 | . 1 . Robot Analysis 3 | . 3 . Alert Level 1 | . 1 . Fabricator Hacks . | . . . Repair Station Hacks . | . . . Recycling Unit Hacks . | . . . Scanalyzer . | . . . Garrison Access Hacks . | . . . Unauthorized Hacks 1 | . 1 . Terminals 1 | . 1 . Botnet 1 | . 1 . Fabricators . | . . . Repair Stations . | . . . Recycling Units . | . . . Scanalyzers . | . . . Garrison Access . | . . . Data Cores Recovered . | . . . Used . | . . . Hacking Detections 2 | . 2 . Full Trace Events . | . . . Feedback Events . | . . . Feedback Blocked . | . . . Robot Schematics Acquired . | . . . Robots Built . | . . . Authchips . | . . . Time . | . . . Total Robot Build Rating . | . . . Part Schematics Acquired . | . . . Parts Built . | . . . Authchips . | . . . Time . | . . . Total Part Build Rating . | . . . Part Studies Acquired . | . . . Parts Repaired . | . . . Time . | . . . Parts Recycled . | . . . Recycled Matter . | . . . Retrieved Matter . | . . . Retrieved Components . | . . . Parts Scanalyzed . | . . . Part Schematics Acquired . | . . . Parts Damaged . | . . . Bothacking | -11 -10 -9 ------------ Run | Yrd Mat Mat Used RIF Installer . | . . . Robots Hacked . | . . . Non-combat . | . . . Combat . | . . . Robot Hacks Applied . | . . . Relay Couplers Released . | . . . Fabnet Peak Effective % . | . . . Robots Rewired . | . . . Allies Hacked . | . . . Hacks Repelled . | . . . Allies | -11 -10 -9 -------- Run | Yrd Mat Mat Total Allies . | . . . Largest Group . | . . . Highest-Rated Group . | . . . Highest-Rated Ally . | . . . Total Orders . | . . . Ally Attacks . | . . . Total Damage . | . . . Kills . | . . . Allies Corrupted . | . . . Allies Melted . | . . . Intel | -11 -10 -9 ------- Run | Yrd Mat Mat Active Infowar (turns) . | . . . Robot Analysis Total 3 | . 3 . Derelict Logs Recovered . | . . . Drone Launches . | . . . Drone Recoveries . | . . . Exploration | -11 -10 -9 ------------- Run | Yrd Mat Mat Turns Passed 1297 | 28 1216 53 Spaces Moved 621 | 18 587 16 Core 8 | . 8 . Treads 613 | 18 579 16 Legs . | . . . Wheels . | . . . Hover . | . . . Flight . | . . . Fastest Speed 50 | 160 50 160 Average Speed 158 | 160 158 160 Slowest Speed 160 | 160 160 160 Overloaded Moves . | . . . Propulsion Burnouts . | . . . Robots Hopped . | . . . Potential Cave-ins . | . . . Cave-ins Triggered . | . . . Exploration Rate (%) 34 | 4 95 3 Regions Visited 2 Branch Regions . Pre-discovered Areas . | . . . Known Exits Taken . | . . . Unknown Exits Taken 2 | 1 1 . Scrap Searched . | . . . Spaces Dug . | . . . Terrain Destroyed 17 | . 17 . Melee . | . . . Projectile . | . . . AOE 17 | . 17 . Terrain Rammed . | . . . Walls Destroyed . | . . . Machines Disabled . | . . . Actions | -11 -10 -9 --------- Run | Yrd Mat Mat Total 841 | 17 787 37 Wait 147 | . 132 15 Move 619 | 17 586 16 Hop . | . . . Pick Up 8 | . 8 . Fast Attach . | . . . Attach 10 | . 10 . Detach 1 | . 1 . Swap 1 | . 1 . Drop . | . . . Fire 55 | . 49 6 Melee . | . . . Ram . | . . . Kick . | . . . Crush . | . . . Escape Stasis . | . . . Rewire . | . . . Trap . | . . . Miscellaneous . | . . . Route ------- -11/Scrapyard -10/Materials (discovered 4 exits: [*Mat x3] / [*Min]) -9/Materials History --------- Turn | Location | Event 9 | -11/Scrapyard | Discovered new exit (range 13) 29 | -11/Scrapyard | Entered Materials 315 | -10/Materials | Build established: Mutant 388 | -10/Materials | Discovered new exit (range 16) 612 | -10/Materials | Discovered new exit (range 11) 736 | -10/Materials | Discovered new exit (range 13) 1061 | -10/Materials | Discovered new exit (range 13) 1245 | -10/Materials | Entered another Materials area 1245 | -9/Materials | Evolved 2 slots: Utility x1, Weapon x1 1298 | -9/Materials | Self-destructed Last Messages --------------- 01193_ Imp. Ion Engine severed. 01193_ Imp. Treads severed. 01195_ Acquired Imp. Treads. 01199_ Acquired Imp. Ion Engine. 01224_ U-05 Engineer lays Concrete. PARAMETERS=UTILITY+1,WEAPON+1 LOCATION=UNKNOWN GOAL=ESCAPE [You open your loot box...] [Congratulations on your very own Mining Laser!] 01283_ Y-45 Defender suffers critical hit (Burn). 01283_ C-30 ARC bursts open, deploying its payload. 01283_ G-34 Mercenary unfolds itself. 01290_ Imp. Treads destroyed. 01290_ Imp. Ion Engine destroyed. 01291_ Mining Laser destroyed. 01291_ Y-45 Defender destroyed. 01293_ Acquired 56 matter. Map ----- +----------------------------------------------------+ | ???????????????????????????????????????????????? | | ???????????????????????????????????????????????? | | ???????????????????????????????????????????????? | | ???????????????????????????????????????????????? | | ???????????????????????????????????????????????? | | ???????????????????????????????????????????????? | | ???????????????????????????????????????????????? | | ???????????????????????????????????????????????? | | ???????????????????????????????????????????????? | | ???????????????????????????????????????????????? | | ???????????????????????????????????????????????? | | ???????????????????????????????????????????????? | | ???????????????????????????????????????????????? | | ???????????????????????????????????????????????? | | ?????????????????########??????????????????????? | | ?????????????????+% ?????????????????????? | | ?????????????????# T ?????????????????????? | | ?????????????????# ?????????????????????? | | ?????????????????# """#????????????????????? | | ?????????????????# """#????????????????????? | | ?????????????????# """#????????????????????? | | ?????????????????# """#????????????????????? | | ?????????????????# """#????????????????????? | | ?????????????????# #????????????????????? | | ?????????????#########+#############???????????? | | ???????? @ #???????????? | | ???????????????###### #???????????? | | ????????????????????# #???????????? | | ????????????????????################???????????? | | ???????????????????????????????????????????????? | | ???????????????????????????????????????????????? | | ???????????????????????????????????????????????? | | ???????????????????????????????????????????????? | | | | | | | | | | | | | | | | | | | | | | | | | | | | | | | | | | | +----------------------------------------------------+ Best States ------------- Heat Dissipation 28 Energy Generation 12 Energy Capacity 265 Matter Stores 300 Matter Capacity 300 Sight Range 16 Terrain Scan Density 10 Additional Mass Support 6 Armor Coverage 225 Evasion (%) 50 Recoil Reduction 2 Item Schematics ----------------- None Robot Schematics ------------------ None Fabricated ------------ Nothing Repaired ---------- Nothing Studied --------- None Alien Tech Used ----------------- None Achievements -------------- None Challenges ------------ None Cogshop Purchases (13) ------------------------ Weight Redist. System (Loot Box) Med. Armor Plating (Loot Box) Imp. Treads (874) Imp. Treads (874) Imp. Ion Engine (699) Imp. EM Shotgun (699) Imp. EM Shotgun (699) Field Recycling Unit (Loot Box) Com. Wheel (Loot Box) Prc. Beam Rifle (Loot Box) Field Recycling Unit (Loot Box) Imp. Ion Engine (711) Mining Laser (Loot Box) Game ------ Seed elon Manual? 1 Play Time 00:11:03 Cumulative 59.4 hours Start 2026.07.10 @ 18:38:18 End 2026.07.10 @ 18:49:06 Sessions 1 Manual Loads 0 Difficulty Rogue Special Mode AFD2019/Pay2Buy Game No. 63 Rogue 8 Adventurer 55 Explorer 0 Win Type - Total 1 Types 1/0/0/0/0/0/0/0/0/0 Lore% 33 Gallery% 34 Achievement% 26 Wizard Run 0 Options --------- Layout 1 ASCII 0 Keyboard 0 Movement Mouse Keybinds 0 Fullscreen 2 Font 24/Smallcaps Map View 50x35 Zoom Use 0% Tactical HUD 1 Map Filters NONE Filters NONE Steam 1 RUN: 3b1e7553-3c91-449a-a907-99f82fb5a49d